bitfinex/quotes_SOLUSD_20260105
["timestamp","ask_amount","ask_price","bid_price","bid_amount"]
[1767576756247,4.99244434,136.13,136.08,0.67718086]
[1767576756540,4.89344434,136.11,136.06,0.67718086]
[1767576756841,5.47427709,136.12,136.07,0.67718086]
[1767576757435,12.82108834,136.12,136.07,0.67718086]
[1767576757630,4.89344434,136.11,136.07,0.67718086]
[1767576758939,7.927644,136.12,136.07,0.67718086]
[1767576759238,4.89344434,136.11,136.07,0.67718086]
[1767576759442,7.927644,136.12,136.07,0.67718086]
[1767576759740,4.89344434,136.11,136.07,0.67718086]
[1767576760316,12.8246918,136.14,136.09,5.5706252]
[1767576760615,12.8246918,136.14,136.09,4.89344434]
[1767576761018,7.34554771,136.14,136.09,4.89344434]
[1767576761724,12.23899205,136.14,136.09,4.89344434]
[1767576761924,12.23899205,136.14,136.07,20.74909439]
[1767576762219,4.89344434,136.14,136.09,7.34789757]
[1767576762424,12.87912508,136.14,136.09,0.67718086]
[1767576763023,4.89344434,136.13,136.09,0.67718086]
[1767576763222,4.89344434,136.12,136.09,0.67718086]
[1767576764030,4.89344434,136.12,136.07,0.67718086]
[1767576764229,4.89344434,136.11,136.07,0.67718086]
[1767576764541,4.89344434,136.1,136.06,0.67718086]
[1767576764725,4.89344434,136.09,136.06,0.67718086]
[1767576764947,12.24176909,136.09,136.06,0.67718086]
[1767576765137,7.34710683,136.11,136.07,0.67718086]
[1767576765646,12.24055117,136.11,136.07,0.67718086]
[1767576766060,7.34710683,136.11,136.07,0.67718086]
[1767576766246,0.10441233,136.1,136.06,4.89344434]
[1767576766439,0.10441233,136.1,136.05,5.5706252]
[1767576766660,0.10441233,136.1,136.05,2.66674367]
[1767576766964,2.09397514,136.1,136.05,2.66674367]
[1767576767568,9.33710536,136.1,136.06,0.67718086]
[1767576767862,9.97733804,136.1,136.06,0.67718086]
[1767576768684,1.98956281,136.09,136.06,0.67718086]
[1767576769279,1.98956281,136.07,136.04,0.67718086]
[1767576769452,0.10441233,136.09,136.04,0.67718086]
[1767576769453,1.98956281,136.09,136.04,0.67718086]
[1767576769649,25.71638898,136.1,136.04,0.67718086]
[1767576769963,1.98956281,136.09,136.04,0.67718086]
[1767576770169,1.98956281,136.08,136.04,0.67718086]
[1767576770546,1.98956281,136.06,136.04,0.67718086]
[1767576770746,9.3388273,136.07,136.04,0.67718086]
[1767576773067,7.44761845,136.08,136.04,0.67718086]
[1767576773269,1.98956281,136.06,136.02,0.67718086]
[1767576773852,0.64569968,136.07,136.03,0.67718086]
[1767576773853,1.98956281,136.07,136.03,0.67718086]
[1767576774055,9.33818126,136.08,136.03,0.67718086]
[1767576774274,7.34861845,136.08,136.03,0.67718086]
[1767576774568,9.33818126,136.08,136.03,0.67718086]
[1767576774969,1.98956281,136.06,136.03,0.67718086]
[1767576775160,9.33932505,136.06,136.03,0.67718086]
[1767576776192,9.33932505,136.06,136.01,0.67718086]
[1767576777375,1.98956281,136.06,136.02,0.67718086]
[1767576778076,9.33887396,136.07,136.02,0.67718086]
[1767576780173,7.34879485,136.08,136.03,0.67718086]
[1767576780479,7.348171,136.09,136.05,0.67718086]
[1767576780654,0.64569968,136.11,136.06,0.71773059]
[1767576780964,3.10919144,136.1,136.06,0.71773059]
[1767576781150,0.64023268,136.08,136.03,8.06894122]
[1767576781349,3.10919144,136.08,136.04,0.71773059]
[1767576781552,3.10919144,136.09,136.04,0.71773059]
[1767576782171,10.45680107,136.1,136.04,3.82692203]
[1767576782375,7.34720877,136.11,136.06,0.71773059]
[1767576782577,0.6296229,136.06,136.0,0.71773059]
[1767576782875,3.10919144,136.04,136.0,0.71773059]
[1767576783457,10.45997979,136.04,136.0,0.71773059]
[1767576783653,3.10919144,136.03,136.01,0.71773059]
[1767576784072,3.10919144,136.04,136.01,0.71773059]
[1767576784468,7.35079665,136.04,136.01,0.71773059]
[1767576784669,3.10919144,136.02,135.99,0.71773059]
[1767576784979,3.10919144,136.01,135.99,0.71773059]
[1767576785178,3.10919144,136.0,135.96,0.71773059]
[1767576785557,3.10919144,135.99,135.96,0.71773059]
[1767576785962,3.10919144,135.98,135.96,0.71773059]
[1767576786780,3.10919144,135.99,135.96,0.71773059]
[1767576787866,3.10919144,135.98,135.95,0.2]
[1767576788072,3.10919144,135.97,135.95,0.2]
[1767576788271,3.10919144,135.98,135.95,0.2]
[1767576789873,3.10919144,135.98,135.95,0.91773059]
[1767576791586,0.13469803,135.97,135.95,0.2]
[1767576791890,3.20819144,135.98,135.95,0.2]
[1767576792272,3.10919144,135.99,135.95,0.2]
[1767576792466,3.74942412,135.99,135.95,0.2]
[1767576792679,0.10441233,135.98,135.95,0.2]
[1767576793186,3.21360377,135.98,135.95,0.2]
[1767576793367,0.63487447,135.97,135.95,0.2]
[1767576793688,0.099,135.98,135.95,0.2]
[1767576793876,3.20819144,135.98,135.95,0.2]
[1767576796298,3.10919144,135.99,135.95,8.2733284]
[1767576796492,0.099,135.98,135.95,0.2]
[1767576796689,3.10919144,135.99,135.96,0.71773059]
[1767576796898,3.10919144,135.98,135.95,0.2]
[1767576797201,7.3529479,136.0,135.96,0.71773059]
[1767576797398,3.10919144,135.99,135.96,0.71773059]
[1767576798598,7.35200237,136.02,135.96,0.71773059]
[1767576798798,3.10919144,136.0,135.98,0.71773059]
[1767576799192,3.10919144,136.01,135.98,0.71773059]
[1767576799997,0.64569968,136.04,135.99,0.71773059]
[1767576799998,3.10919144,136.04,135.99,0.71773059]
[1767576800186,3.10919144,136.04,136.01,0.71773059]
[1767576800700,7.34987107,136.06,136.01,0.71773059]
[1767576800878,3.10919144,136.04,136.01,0.71773059]
[1767576801085,3.10919144,136.04,136.01,13.4]
[1767576801302,3.10919144,136.04,136.01,14.11773059]
[1767576802103,3.10919144,136.06,136.02,0.71773059]
[1767576802282,0.64569968,136.1,136.04,0.71773059]
[1767576802482,3.10919144,136.08,136.05,0.71773059]
[1767576804777,3.10919144,136.06,136.03,14.11773059]
[1767576805203,3.10919144,136.07,136.03,14.11773059]
[1767576805401,3.10919144,136.06,136.03,14.11773059]
[1767576805807,3.10919144,136.07,136.04,0.65773059]
[1767576805983,3.10919144,136.07,136.04,0.56968847]
[1767576808499,10.45837148,136.07,136.02,0.71773059]
[1767576808708,3.10919144,136.05,136.01,0.71773059]
[1767576809005,3.74553154,136.06,136.01,0.71773059]
[1767576809201,3.10919144,136.06,136.02,0.71773059]
[1767576809609,3.10919144,136.08,136.03,0.71773059]
[1767576809792,3.10919144,136.08,136.04,0.71773059]
[1767576810208,7.34773012,136.1,136.04,0.71773059]
[1767576810403,3.10919144,136.09,136.05,0.71773059]
[1767576810614,0.19325078,136.1,136.05,0.71773059]
[1767576810615,3.10919144,136.08,136.05,0.71773059]
[1767576811010,3.10919144,136.09,136.05,0.71773059]
[1767576811517,7.54096327,136.1,136.05,0.71773059]
[1767576811694,7.34713784,136.11,136.06,0.67256074]
[1767576811898,3.10919144,136.1,136.06,0.67256074]
[1767576813003,3.10919144,136.11,136.07,0.67256074]
[1767576813204,3.10919144,136.1,136.07,0.67256074]
[1767576813399,3.10919144,136.13,136.08,0.67256074]
[1767576814123,3.81481511,136.14,136.1,0.67256074]
[1767576814303,3.10919144,136.13,136.1,0.64060286]
[1767576814712,11.160353,136.14,136.1,0.64060286]
[1767576815626,18.36089633,136.16,136.1,0.64060286]
[1767576815627,8.0055805,136.16,136.1,10.45665668]
[1767576815817,11.11477194,136.16,136.1,10.45665668]
[1767576816011,3.10919144,136.15,136.1,3.10919144]
[1767576816210,3.10919144,136.15,136.11,0.66128794]
[1767576816509,10.45350045,136.16,136.11,0.66128794]
[1767576819625,3.10919144,136.15,136.11,0.66128794]
[1767576821933,0.26191436,136.19,136.13,0.66128794]
[1767576822113,3.10919144,136.17,136.13,0.66128794]
[1767576822313,3.3711058,136.19,136.14,0.66128794]
[1767576822515,3.10919144,136.19,136.14,0.66128794]
[1767576822844,3.10919144,136.2,136.15,0.66128794]
[1767576823624,10.45136025,136.2,136.15,0.66128794]
[1767576827045,3.10919144,136.19,136.15,0.66128794]
[1767576827422,7.34216881,136.2,136.15,0.66128794]
[1767576827622,3.10919144,136.19,136.15,0.66128794]
[1767576829122,3.10919144,136.2,136.16,0.66128794]
[1767576829322,3.10919144,136.22,136.17,3.10919144]
[1767576829823,8.10202068,136.23,136.16,16.48919144]
[1767576830022,3.10919144,136.22,136.16,16.48919144]
[1767576830943,0.1,136.23,136.17,10.45295291]
[1767576831142,0.1,136.23,136.19,3.10919144]
[1767576831352,0.1,136.23,136.21,0.66128794]
[1767576832047,0.1,136.23,136.21,0.60128794]
[1767576834835,0.47971436,136.28,136.23,0.66128794]
[1767576835147,3.10919144,136.27,136.23,0.57340212]
[1767576835358,3.10919144,136.26,136.23,0.57340212]
[1767576835541,3.10919144,136.25,136.21,13.38]
[1767576835933,7.99917246,136.28,136.21,23.83078782]
[1767576836138,3.10919144,136.27,136.22,3.10919144]
[1767576836970,7.99917246,136.28,136.23,0.66128794]
[1767576836971,3.77033116,136.28,136.23,0.66128794]
[1767576837135,0.66113972,136.28,136.23,0.66128794]
[1767576837338,3.10919144,136.28,136.24,0.66128794]
[1767576837847,0.56672132,136.29,136.24,0.66128794]
[1767576838043,3.10919144,136.28,136.24,0.66128794]
[1767576838459,0.66113972,136.31,136.26,0.66128794]
[1767576838639,3.10919144,136.31,136.27,0.66128794]
[1767576839648,3.10919144,136.32,136.28,0.66128794]
[1767576839962,11.10547382,136.33,136.28,0.66128794]
[1767576840150,7.99628238,136.33,136.28,0.66128794]
[1767576840458,11.10547382,136.33,136.28,0.66128794]
[1767576840656,3.10919144,136.32,136.28,0.66128794]
[1767576840959,3.10919144,136.31,136.28,0.66128794]
[1767576841737,3.76354488,136.29,136.24,0.65365032]
[1767576842245,3.10919144,136.29,136.25,0.65365032]
[1767576842649,1.98408715,136.29,136.25,0.65365032]
[1767576842848,7.99125211,136.32,136.25,0.65365032]
[1767576843045,7.99125211,136.32,136.26,0.65365032]
[1767576843046,1.98408715,136.3,136.26,0.65365032]
[1767576843242,0.57262242,136.31,136.26,0.65365032]
[1767576843443,2.63926616,136.33,136.28,0.65365032]
[1767576844045,2.63763146,136.29,136.24,0.65365032]
[1767576844351,1.98408715,136.31,136.27,0.65365032]
[1767576844548,1.98408715,136.3,136.27,0.65365032]
[1767576844754,0.57343973,136.3,136.26,0.65365032]
[1767576844947,1.98408715,136.3,136.26,0.65365032]
[1767576845152,9.97529502,136.32,136.27,0.65365032]
[1767576845370,1.98408715,136.31,136.27,0.65365032]
[1767576845664,0.1,136.34,136.28,0.65365032]
[1767576845847,1.98408715,136.33,136.29,0.65365032]
[1767576846049,0.1,136.34,136.3,0.65365032]
[1767576846362,0.1,136.34,136.31,0.65365032]
[1767576846562,0.1,136.35,136.32,0.65365032]
[1767576847255,0.1,136.35,136.33,0.65365032]
[1767576847458,9.31667105,136.38,136.32,1.98408715]
[1767576847459,9.31667105,136.38,136.34,0.65365032]
[1767576847659,0.65517901,136.39,136.34,0.59365032]
[1767576847845,2.63926616,136.39,136.34,2.57773747]
[1767576848162,2.63926616,136.39,136.34,0.59365032]
[1767576848665,9.97132398,136.39,136.34,0.59365032]
[1767576848863,7.98627267,136.41,136.35,1.98408715]
[1767576849050,2.63926616,136.39,136.34,7.33454587]
[1767576849243,1.98408715,136.39,136.34,7.33454587]
[1767576849549,50.02609757,136.45,136.37,0.65365032]
[1767576849550,9.96974477,136.42,136.37,0.65365032]
[1767576849757,1.98408715,136.41,136.37,0.0117783]
[1767576850049,9.97096149,136.4,136.35,13.38]
[1767576850642,9.97096149,136.4,136.34,9.3186074]
[1767576850643,0.65517901,136.38,136.3,5.51529]
[1767576850848,0.65517901,136.37,136.31,1.98408715]
[1767576851043,2.63926616,136.36,136.3,9.32069772]
[1767576851464,2.63926616,136.34,136.28,9.32156443]
[1767576851762,1.98408715,136.33,136.28,7.9911276]
[1767576852163,1.98408715,136.33,136.29,0.65365032]
[1767576852563,4.86888686,136.33,136.29,0.65365032]
[1767576853672,7.98985238,136.34,136.29,0.65365032]
[1767576853964,5.52406587,136.3,136.26,7.9925521]
[1767576854968,5.52406587,136.3,136.26,0.65365032]
[1767576855165,4.86888686,136.29,136.26,0.65365032]
[1767576855765,5.52406587,136.29,136.24,51.84560864]
[1767576856079,7.3370393,136.3,136.24,51.19195832]
[1767576856080,5.52406587,136.28,136.24,51.19195832]
[1767576856951,14.03517901,136.3,136.25,0.65365032]
[1767576857272,4.86888686,136.31,136.26,5.52253718]
[1767576857459,5.52406587,136.31,136.26,5.52253718]
[1767576857659,0.65517901,136.31,136.27,0.65365032]
[1767576858370,4.86888686,136.32,136.27,7.99199958]
[1767576858571,0.65517901,136.32,136.27,12.86088644]
[1767576858867,0.65517901,136.32,136.27,5.52253718]
[1767576859071,0.65517901,136.29,136.25,5.52253718]
[1767576859444,13.38,136.33,136.28,0.65365032]
[1767576859445,26.23922814,136.33,136.28,0.65365032]
[1767576859651,0.65517901,136.32,136.28,0.65365032]
[1767576860073,0.65517901,136.32,136.28,5.52253718]
[1767576860251,5.52406587,136.31,136.26,7.99241346]
[1767576860450,0.65517901,136.3,136.24,56.7144955]
[1767576860670,5.52406587,136.3,136.25,4.86888686]
[1767576860875,5.52406587,136.3,136.25,5.52253718]
[1767576861547,0.65517901,136.3,136.26,0.65365032]
[1767576861752,13.38,136.33,136.24,51.19195832]
[1767576861753,0.65517901,136.32,136.27,5.52253718]
[1767576862046,5.52406587,136.32,136.27,5.52253718]
[1767576862455,0.65517901,136.32,136.27,12.86060753]
[1767576862666,13.38,136.33,136.29,0.65365032]
[1767576862863,14.03517901,136.33,136.29,0.65365032]
[1767576863064,18.90406587,136.33,136.29,0.65365032]
[1767576863467,14.03517901,136.33,136.29,5.52253718]
[1767576863656,18.90406587,136.33,136.28,5.52253718]
[1767576864076,14.03517901,136.33,136.29,5.52253718]
[1767576864385,14.03517901,136.33,136.29,5.46253718]
[1767576864587,26.2393742,136.33,136.28,5.52253718]
[1767576865864,18.90406587,136.33,136.28,5.52253718]
[1767576866590,18.90406587,136.33,136.28,0.65365032]
[1767576867384,18.90406587,136.33,136.28,7.99147431]
[1767576867586,18.90406587,136.33,136.28,12.86036117]
[1767576867883,26.23930099,136.33,136.28,0.65365032]
[1767576868288,5.52406587,136.32,136.28,0.65365032]
[1767576868500,4.86888686,136.3,136.25,7.9930767]
[1767576868790,4.86888686,136.3,136.26,0.65365032]
[1767576868986,31.71785667,136.33,136.27,5.52253718]
[1767576868987,14.03517901,136.33,136.27,5.52253718]
[1767576869176,18.90406587,136.33,136.28,0.65365032]
[1767576869891,18.90406587,136.33,136.28,5.52253718]
[1767576870098,18.90406587,136.33,136.29,0.65365032]
[1767576871396,26.23921327,136.33,136.29,0.65365032]
[1767576871703,26.23921327,136.33,136.29,0.59365032]
[1767576872605,18.90406587,136.33,136.29,0.59365032]
[1767576872902,13.38,136.33,136.29,12.20613747]
[1767576873298,13.38,136.33,136.3,4.86888686]
[1767576873599,14.07036059,136.37,136.32,4.86888686]
[1767576873785,14.07036059,136.37,136.32,5.04842934]
[1767576874799,14.07036059,136.37,136.32,12.38400723]
[1767576875298,21.4035236,136.37,136.32,5.04842934]
[1767576875490,26.27241046,136.37,136.32,5.04842934]
[1767576875892,14.07036059,136.37,136.33,4.86888686]
[1767576876198,0.65715166,136.36,136.33,4.86888686]
[1767576876400,13.36,136.37,136.33,5.04842934]
[1767576877398,13.36,136.37,136.33,12.38330338]
[1767576877902,21.34872825,136.4,136.35,5.04842934]
[1767576878105,0.65715166,136.39,136.34,4.86888686]
[1767576878289,0.65715166,136.39,136.35,4.86888686]
[1767576878487,0.65715166,136.39,136.34,2.16059694]
[1767576878995,22.67263105,136.4,136.33,1.98105446]
[1767576878996,0.65715166,136.37,136.33,1.98105446]
[1767576879183,0.65715166,136.37,136.32,2.16059694]
[1767576879379,0.65715166,136.36,136.32,1.98105446]
[1767576879579,0.65715166,136.36,136.31,0.17954248]
[1767576879799,0.65715166,136.35,136.31,2.16059694]
[1767576880084,0.65715166,136.35,136.31,9.49676058]
[1767576880294,23.3313686,136.37,136.32,7.33567396]
[1767576880489,14.01715166,136.37,136.32,12.38094396]
[1767576880710,14.01715166,136.37,136.33,5.04527]
[1767576880711,13.36,136.37,136.33,5.04527]
[1767576881496,13.36,136.37,136.34,5.04527]
[1767576882003,13.36,136.37,136.34,0.17954248]
[1767576883102,14.01715166,136.37,136.32,5.04527]
[1767576883300,5.52287918,136.36,136.3,5.04527]
[1767576883498,0.65715166,136.35,136.3,12.20213312]
[1767576883681,0.65715166,136.34,136.3,7.3364056]
[1767576883881,0.65715166,136.34,136.3,12.20213312]
[1767576884310,0.65715166,136.35,136.31,12.38148017]
[1767576884486,0.65715166,136.35,136.31,7.51575265]
[1767576884686,0.65715166,136.35,136.31,12.38148017]
[1767576884899,0.65715166,136.35,136.31,12.20193769]
[1767576885102,0.65715166,136.35,136.31,7.33621017]
[1767576885308,0.65715166,136.35,136.31,12.20193769]
[1767576885706,0.65715166,136.35,136.33,4.86572752]
[1767576886410,0.65715166,136.35,136.31,7.33621017]
[1767576886598,5.52287918,136.36,136.31,0.17954248]
[1767576886922,0.65715166,136.35,136.31,0.17954248]
[1767576887821,0.65715166,136.35,136.31,7.51574629]
[1767576888122,14.01715166,136.37,136.33,5.04527]
[1767576888515,14.01715166,136.37,136.33,0.17954248]
[1767576889299,18.88287918,136.37,136.32,4.86572752]
[1767576889719,18.88287918,136.37,136.32,0.17954248]
[1767576889994,14.01715166,136.37,136.33,7.33514266]
[1767576891422,14.01715166,136.37,136.32,12.38074884]
[1767576891828,18.88287918,136.37,136.32,7.51502132]
[1767576893222,14.01715166,136.37,136.32,12.38074884]
[1767576893611,14.01715166,136.37,136.33,0.17954248]
[1767576895206,0.65715166,136.36,136.32,0.17954248]
[1767576895402,5.52287918,136.36,136.31,7.5155977]
[1767576896116,0.65715166,136.35,136.31,7.5155977]
[1767576896330,21.35019269,136.37,136.31,7.51526161]
[1767576896512,0.65715166,136.36,136.31,0.17954248]
[1767576896725,5.52287918,136.36,136.31,0.17954248]
[1767576897224,5.52287918,136.36,136.31,7.51571707]
[1767576897723,0.65715166,136.36,136.32,0.17954248]
[1767576898505,0.65715166,136.36,136.32,7.5151296]
[1767576898921,0.65715166,136.36,136.32,7.33558712]
[1767576899909,0.65715166,136.36,136.31,7.51542481]
[1767576900112,0.65715166,136.36,136.31,12.38115233]
[1767576900612,0.65715166,136.36,136.31,9.49737132]
[1767576901218,0.70324919,136.4,136.34,2.16148899]
[1767576901534,0.70324919,136.39,136.34,2.16148899]
[1767576902728,0.70324919,136.39,136.34,10.60896185]
[1767576902930,0.70324919,136.39,136.34,7.51385678]
[1767576903122,0.70324919,136.39,136.34,10.60896185]
[1767576903319,3.79835426,136.39,136.34,7.51385678]
[1767576903732,0.70324919,136.37,136.32,3.82867314]
[1767576904028,0.70324919,136.36,136.32,0.17954248]
[1767576904238,0.70324919,136.36,136.32,7.51481098]
[1767576904730,0.70324919,136.35,136.3,0.91321819]
[1767576905035,3.79835426,136.35,136.3,0.17954248]
[1767576905629,3.79835426,136.35,136.3,7.51596356]
[1767576906012,0.70324919,136.32,136.26,80.92640008]
[1767576906228,3.79835426,136.32,136.27,7.51776198]
[1767576906614,0.70324919,136.32,136.27,10.61286705]
[1767576906934,0.70324919,136.32,136.28,0.17954248]
[1767576907835,13.36,136.33,136.3,0.17954248]
[1767576908018,16.45510507,136.36,136.31,0.17954248]
[1767576908209,13.36,136.36,136.32,0.17954248]
[1767576908918,3.79835426,136.39,136.34,0.17954248]
[1767576909135,17.15835426,136.39,136.34,0.17954248]
[1767576909637,14.06324919,136.39,136.34,3.27464755]
[1767576909839,13.36,136.39,136.35,0.17954248]
[1767576910024,13.36,136.39,136.35,3.27464755]
[1767576910210,13.36,136.39,136.35,0.17954248]
[1767576911345,0.70324919,136.44,136.38,8.0832655]
[1767576911519,21.96697221,136.43,136.38,0.17954248]
[1767576911714,8.60697221,136.42,136.38,0.17954248]
[1767576911918,8.60697221,136.42,136.36,0.17954248]
[1767576912120,8.60697221,136.41,136.36,0.17954248]
[1767576912320,8.60697221,136.39,136.34,7.51377401]
[1767576912532,0.00755023,136.39,136.34,15.23795455]
[1767576912732,0.00755023,136.39,136.35,15.23748651]
[1767576912937,0.00755023,136.39,136.35,8.71987692]
[1767576913128,0.00755023,136.39,136.36,7.90372302]
[1767576913718,21.26372302,136.43,136.38,0.65270676]
[1767576914331,28.59350823,136.43,136.38,0.65270676]
[1767576914641,29.29675742,136.43,136.38,0.65270676]
[1767576915246,7.90372302,136.42,136.38,0.65270676]
[1767576915744,8.60697221,136.42,136.38,0.65270676]
[1767576915933,8.60697221,136.41,136.36,7.98621578]
[1767576916247,0.70324919,136.4,136.36,7.33350902]
[1767576917050,0.70324919,136.4,136.36,15.23723204]
[1767576918643,15.23403279,136.42,136.37,0.65270676]
[1767576918853,15.93728198,136.42,136.37,0.65270676]
[1767576919145,0.70324919,136.42,136.37,0.65270676]
[1767576919435,8.60697221,136.42,136.37,0.65270676]
[1767576919826,15.93739756,136.42,136.37,0.65270676]
[1767576920028,7.90372302,136.41,136.37,0.65270676]
[1767576920542,0.70324919,136.42,136.38,0.65270676]
[1767576922149,15.93691427,136.43,136.38,0.65270676]
[1767576923047,0.70324919,136.46,136.39,0.65270676]
[1767576923242,21.96697221,136.46,136.41,0.65270676]
[1767576923939,29.29531444,136.46,136.41,0.65270676]
[1767576924141,0.70324919,136.45,136.41,0.65270676]
[1767576924348,8.03211741,136.45,136.41,0.65270676]
[1767576924531,0.70324919,136.44,136.39,15.23562367]
[1767576924931,0.70324919,136.44,136.4,7.90372302]
[1767576925146,0.70324919,136.44,136.4,15.23499309]
[1767576925345,0.70324919,136.44,136.4,7.90372302]
[1767576925547,0.70324919,136.44,136.39,15.23562155]
[1767576925940,0.70324919,136.44,136.4,7.90372302]
[1767576926146,0.70324919,136.44,136.4,8.06418902]
[1767576926452,0.70324919,136.45,136.4,16.6206188]
[1767576927241,0.70324919,136.44,136.4,0.73313782]
[1767576927443,0.70324919,136.44,136.39,15.23550996]
[1767576927637,15.93567361,136.45,136.4,0.65270676]
[1767576927836,21.96697221,136.46,136.41,0.65270676]
[1767576928238,8.03051404,136.48,136.42,0.65270676]
[1767576928453,15.93423706,136.48,136.42,0.65270676]
[1767576928649,8.03051404,136.48,136.42,0.65270676]
[1767576928950,0.70324919,136.46,136.41,7.90372302]
[1767576929155,0.70324919,136.46,136.4,8.71720331]
[1767576929449,0.70324919,136.46,136.42,7.90372302]
[1767576929943,7.32764311,136.47,136.42,0.65270676]
[1767576930144,8.0308923,136.47,136.42,0.65270676]
[1767576930546,8.0308923,136.47,136.42,63.05270676]
[1767576930753,0.67691828,136.46,136.42,62.4]
[1767576931141,0.67691828,136.46,136.42,70.30372302]
[1767576931659,0.67691828,136.46,136.42,62.4]
[1767576932060,0.67691828,136.46,136.42,70.99984437]
[1767576932260,0.67691828,136.46,136.42,63.09612135]
[1767576933157,3.7686837,136.48,136.43,0.69612135]
[1767576933353,0.67691828,136.47,136.42,62.4]
[1767576933539,0.67691828,136.47,136.42,70.42618454]
[1767576933741,0.67691828,136.47,136.42,73.51794996]
[1767576934175,0.67691828,136.47,136.43,0.69612135]
[1767576934376,0.67691828,136.48,136.43,66.18788677]
[1767576934747,23.87841202,136.49,136.44,0.69612135]
[1767576934748,13.46,136.49,136.44,0.69612135]
[1767576934939,13.46,136.49,136.45,0.69612135]
[1767576935147,23.87836369,136.49,136.45,0.69612135]
[1767576935959,24.55422685,136.49,136.45,0.69612135]
[1767576936167,3.09176542,136.48,136.45,0.69612135]
[1767576936357,0.67586316,136.47,136.44,62.4]
[1767576937879,0.67586316,136.46,136.44,62.4]
[1767576938048,0.67586316,136.46,136.42,75.76]
[1767576938448,3.09176542,136.47,136.42,76.47808609]
[1767576938666,3.76762858,136.47,136.42,76.47808609]
[1767576938970,3.76762858,136.47,136.42,83.8083363]
[1767576939373,0.67586316,136.46,136.42,83.09025021]
[1767576940171,0.67586316,136.46,136.42,69.73025021]
[1767576940370,0.67586316,136.45,136.42,62.4]
[1767576940960,10.4194241,136.47,136.42,62.4]
[1767576941973,3.09176542,136.44,136.39,69.73175771]
[1767576942174,3.09176542,136.45,136.39,10.42352313]
[1767576942352,3.09176542,136.46,136.4,10.42292668]
[1767576942552,3.09176542,136.46,136.4,11.14101277]
[1767576942753,3.09176542,136.46,136.41,0.71808609]
[1767576942953,3.76762858,136.46,136.41,0.71808609]
[1767576943155,0.67586316,136.45,136.41,0.71808609]
[1767576943557,8.00458774,136.45,136.41,0.71808609]
[1767576943758,3.09176542,136.44,136.41,0.71808609]
[1767576943956,3.76762858,136.43,136.39,0.71808609]
[1767576944270,8.00458774,136.45,136.4,0.71808609]
[1767576944472,3.76762858,136.44,136.4,0.71808609]
[1767576945194,0.67586316,136.43,136.38,8.05004812]
[1767576945401,11.09698873,136.44,136.39,0.71808609]
[1767576945573,3.76762858,136.45,136.4,0.71808609]
[1767576945775,0.67586316,136.45,136.4,0.71808609]
[1767576946089,3.76762858,136.44,136.4,0.71808609]
[1767576946477,0.67586316,136.43,136.39,0.71808609]
[1767576946674,0.67586316,136.46,136.41,0.71808609]
[1767576946869,3.76762858,136.46,136.41,0.71808609]
[1767576947594,0.67586316,136.45,136.41,0.71808609]
[1767576948196,0.67586316,136.45,136.41,3.80985151]
[1767576948496,0.67586316,136.45,136.4,10.42265099]
[1767576948704,7.32708089,136.48,136.42,0.71808609]
[1767576948882,7.32708089,136.48,136.43,0.71808609]
[1767576949074,10.41884631,136.48,136.43,0.71808609]
[1767576949597,3.09176542,136.47,136.41,10.42236608]
[1767576949892,3.09176542,136.46,136.41,0.71808609]
[1767576950690,0.67586316,136.45,136.4,73.54115781]
[1767576950877,0.67586316,136.45,136.41,0.71808609]
[1767576951075,0.67586316,136.47,136.42,0.71808609]
[1767576951293,3.76762858,136.47,136.42,0.71808609]
[1767576951592,0.67586316,136.46,136.42,8.0483445]
[1767576951797,3.09176542,136.47,136.43,0.71808609]
[1767576952095,3.76762858,136.47,136.43,0.71808609]
[1767576952698,0.67586316,136.46,136.42,11.14010992]
[1767576953099,3.76762858,136.47,136.43,0.71808609]
[1767576953594,0.67586316,136.47,136.43,8.0478253]
[1767576953796,0.1,136.49,136.47,0.71808609]
[1767576954105,0.1,136.51,136.49,0.71808609]
[1767576954676,3.09176542,136.54,136.48,3.80985151]
[1767576954877,3.09176542,136.54,136.48,0.71808609]
[1767576955278,20.68278607,136.57,136.5,0.71808609]
[1767576955478,20.68278607,136.57,136.5,11.13569524]
[1767576955479,23.77455149,136.57,136.5,11.13569524]
[1767576955678,20.68278607,136.57,136.5,11.13569524]
[1767576955891,3.09176542,136.56,136.5,11.13569524]
[1767576956288,21.57397054,136.59,136.51,0.71808609]
[1767576956479,3.09176542,136.57,136.51,0.71808609]
[1767576956688,3.76762858,136.57,136.51,0.71808609]
[1767576957006,0.16549739,136.56,136.5,0.71808609]
[1767576957185,3.26999471,136.59,136.55,3.09176542]
[1767576957385,3.26999471,136.59,136.55,0.71808609]
[1767576957574,0.17055001,136.57,136.5,0.71808609]
[1767576957780,0.66575741,136.56,136.51,3.80985151]
[1767576958098,0.16549739,136.57,136.52,0.71808609]
[1767576958298,3.4354921,136.59,136.54,3.80985151]
[1767576958474,3.4354921,136.59,136.55,3.09176542]
[1767576958681,3.4354921,136.59,136.55,0.71808609]
[1767576958682,3.26999471,136.59,136.55,0.71808609]
[1767576958986,3.26999471,136.59,136.55,3.80985151]